fUSD/lending_fUSD_20240530
["ID","MTS","AMOUNT","RATE_DAILY","PERIOD"]
[328202649,1717056644219,-741.55,0.00028997,7]
[328202651,1717056644228,-500.0,0.00028997,7]
[328202653,1717056644237,-500.0,0.00028997,7]
[328202655,1717056644247,-500.0,0.00028997,7]
[328202657,1717056644257,-500.0,0.00028997,7]
[328202659,1717056644267,-500.0,0.00028997,7]
[328202661,1717056644276,-500.0,0.00028997,7]
[328202663,1717056644286,-531.33136321,0.00028997,7]
[328202665,1717056644296,-500.0,0.00028997,7]
[328202667,1717056644306,-500.0,0.00028997,7]
[328202669,1717056644316,-522.27120811,0.00028997,7]
[328202671,1717056644325,-500.0,0.00028997,7]
[328202673,1717056644335,-500.0,0.00028997,7]
[328202675,1717056644345,-500.0,0.00028997,7]
[328202677,1717056644357,-500.0,0.00028997,7]
[328202679,1717056644366,-500.0,0.00028997,7]
[328202681,1717056644376,-560.97,0.00028997,7]
[328202683,1717056644386,-500.0,0.00028997,7]
[328202685,1717056644396,-500.0,0.00028997,7]
[328202687,1717056644406,-508.5964248,0.00028997,7]
[328202689,1717056644416,-500.0,0.00028997,7]
[328202691,1717056644426,-500.0,0.00028997,7]
[328202693,1717056644438,-500.0,0.00028997,7]
[328202695,1717056644448,-500.0,0.00028997,7]
[328202697,1717056644458,-532.52209233,0.00028997,7]
[328202699,1717056644468,-524.1951572,0.00028997,7]
[328202701,1717056644478,-507.0128937,0.00028997,7]
[328202703,1717056644487,-500.0,0.00028997,7]
[328202705,1717056644497,-533.14678346,0.00028997,7]
[328202707,1717056644506,-500.0,0.00028997,7]
[328202710,1717056644516,-500.0,0.00028997,7]
[328202711,1717056644524,-1351.51,0.00028997,7]
[328202714,1717056644534,-500.0,0.00028997,7]
[328202716,1717056644546,-5812.51,0.00028997,7]
[328202718,1717056644555,-548.96224336,0.00028997,7]
[328202720,1717056644565,-500.0,0.00028997,7]
[328202722,1717056644574,-530.37513237,0.00028997,7]
[328202724,1717056644583,-500.0,0.00028997,7]
[328202726,1717056644592,-500.0,0.00028997,7]
[328202727,1717056644601,-500.0,0.00028997,7]
[328202729,1717056644610,-500.0,0.00028997,7]
[328202731,1717056644620,-500.0,0.00028997,7]
[328202733,1717056644629,-500.0,0.00028997,7]
[328202736,1717056644639,-601.07,0.00028997,7]
[328202738,1717056644648,-500.0,0.00028997,7]
[328202740,1717056644658,-550.39528076,0.00028997,7]
[328202743,1717056644667,-500.0,0.00028997,7]
[328202745,1717056644676,-500.0,0.00028997,7]
[328202747,1717056644685,-573.10964096,0.00028997,7]
[328202749,1717056644694,-500.0,0.00028997,7]
[328202751,1717056644703,-500.0,0.00028997,7]
[328202753,1717056644712,-500.0,0.00028997,7]
[328202755,1717056644722,-286.90205428,0.00028997,7]
[328202757,1717056644731,-500.0,0.00028997,7]
[328202758,1717056644740,-500.0,0.00028997,7]
[328202761,1717056644750,-500.0,0.00028997,7]
[328202763,1717056644759,-500.0,0.00028997,7]
[328202764,1717056644769,-518.75017248,0.00028997,7]
[328202765,1717056644777,-500.0,0.00028997,7]
[328202766,1717056644787,-500.0,0.00028997,7]
[328202767,1717056644798,-527.39,0.00028997,7]
[328202768,1717056644808,-271.54903354,0.00028997,7]
[328202769,1717056644817,-540.18138777,0.00028997,7]
[328202770,1717056644826,-512.59436346,0.00028997,7]
[328202771,1717056644835,-576.91,0.00028997,7]
[328202772,1717056644844,-500.0,0.00028997,7]
[328202773,1717056644853,-500.0,0.00028997,7]
[328202774,1717056644862,-528.69,0.00028997,7]
[328202775,1717056644872,-500.0,0.00028997,7]
[328202776,1717056644881,-500.0,0.00028997,7]
[328202777,1717056644890,-500.0,0.00028997,7]
[328202778,1717056644899,-500.0,0.00028997,7]
[328202779,1717056644909,-500.0,0.00028997,7]
[328202780,1717056644918,-500.0,0.00028997,7]
[328202781,1717056644927,-500.0,0.00028997,7]
[328202782,1717056644936,-500.0,0.00028997,7]
[328202783,1717056644946,-1323.8,0.00028997,7]
[328202784,1717056644955,-582.11,0.00028997,7]
[328202785,1717056644964,-500.0,0.00028997,7]
[328202786,1717056644973,-500.0,0.00028997,7]
[328202787,1717056644985,-500.0,0.00028997,7]
[328202788,1717056644996,-500.0,0.00028997,7]
[328202789,1717056645006,-500.0,0.00028997,7]
[328202790,1717056645016,-500.0,0.00028997,7]
[328202791,1717056645025,-500.0,0.00028997,7]
[328202792,1717056645035,-500.0,0.00028997,7]
[328202793,1717056645047,-500.0,0.00028997,7]
[328202794,1717056645057,-500.0,0.00028997,7]
[328202795,1717056645066,-500.0,0.00028997,7]
[328202796,1717056645076,-500.0,0.00028997,7]
[328202797,1717056645085,-516.50795844,0.00028997,7]
[328202798,1717056645095,-500.0,0.00028997,7]
[328202799,1717056645104,-500.0,0.00028997,7]
[328202800,1717056645113,-500.0,0.00028997,7]
[328202801,1717056645123,-802.93,0.00028997,7]
[328202802,1717056645132,-500.0,0.00028997,7]
[328202803,1717056645141,-500.0,0.00028997,7]
[328202804,1717056645150,-500.0,0.00028997,7]
[328202805,1717056645159,-500.0,0.00028997,7]
[328202806,1717056645169,-523.58,0.00028997,7]
[328202807,1717056645178,-500.0,0.00028997,7]
[328202808,1717056645187,-500.0,0.00028997,7]
[328202809,1717056645197,-2380.38,0.00028997,7]
[328202815,1717056645375,-500.0,0.00028997,7]
[328202817,1717056645385,-539.97,0.00028997,7]
[328202819,1717056645395,-500.0,0.00028997,7]
[328202821,1717056645404,-500.0,0.00028997,7]
[328202823,1717056645413,-543.49996171,0.00028997,7]
[328202825,1717056645422,-500.0,0.00028997,7]
[328202827,1717056645434,-500.0,0.00028997,7]
[328202828,1717056645444,-500.0,0.00028997,7]
[328202829,1717056645454,-651.85,0.00028997,7]
[328202830,1717056645463,-481.2632369,0.00028997,7]
[328202831,1717056645473,-500.0,0.00028997,7]
[328202832,1717056645483,-500.0,0.00028997,7]
[328202833,1717056645492,-500.0,0.00028997,7]
[328202834,1717056645502,-500.0,0.00028997,7]
[328202835,1717056645513,-500.0,0.00028997,7]
[328202836,1717056645523,-504.64381793,0.00028997,7]
[328202837,1717056645533,-500.0,0.00028997,7]
[328202838,1717056645542,-500.0,0.00028997,7]
[328202839,1717056645553,-500.0,0.00028997,7]
[328202840,1717056645563,-540.5095703,0.00028997,7]
[328202841,1717056645572,-500.0,0.00028997,7]
[328202842,1717056645581,-500.0,0.00028997,7]
[328202843,1717056645591,-502.83,0.00028997,7]
[328202844,1717056645602,-517.20787667,0.00028997,7]
[328202845,1717056645612,-500.0,0.00028997,7]
[328202846,1717056645621,-500.0,0.00028997,7]
[328202847,1717056645632,-1264.47,0.00028997,7]
[328202848,1717056645641,-500.0,0.00028997,7]
[328202849,1717056645650,-500.0,0.00028997,7]
[328202850,1717056645660,-519.23047374,0.00028997,7]
[328202851,1717056645670,-500.0,0.00028997,7]
[328202852,1717056645679,-500.0,0.00028997,7]
[328202853,1717056645689,-500.0,0.00028997,7]
[328202854,1717056645698,-500.0,0.00028997,7]
[328202855,1717056645708,-500.0,0.00028997,7]
[328202857,1717056645718,-500.0,0.00028997,7]
[328202859,1717056645728,-477.00980697,0.00028997,7]
[328202861,1717056645738,-500.0,0.00028997,7]
[328202862,1717056645749,-500.0,0.00028997,7]
[328202864,1717056645759,-500.0,0.00028997,7]
[328202866,1717056645769,-500.0,0.00028997,7]
[328202869,1717056645778,-500.0,0.00028997,7]
[328202872,1717056645787,-500.0,0.00028997,7]
[328202874,1717056645796,-500.0,0.00028997,7]
[328202877,1717056645805,-500.0,0.00028997,7]
[328202880,1717056645814,-500.0,0.00028997,7]
[328202883,1717056645823,-511.70024007,0.00028997,7]
[328202885,1717056645832,-500.0,0.00028997,7]
[328202888,1717056645842,-500.0,0.00028997,7]
[328202892,1717056645851,-500.0,0.00028997,7]
[328202896,1717056645861,-475.04929355,0.00028997,7]
[328202899,1717056645870,-500.0,0.00028997,7]
[328202903,1717056645879,-826.34,0.00028997,7]
[328202905,1717056645889,-500.0,0.00028997,7]
[328202907,1717056645898,-500.0,0.00028997,7]
[328202908,1717056645907,-500.0,0.00028997,7]
[328202910,1717056645917,-1232.68,0.00028997,7]
[328202912,1717056645926,-500.0,0.00028997,7]
[328202914,1717056645934,-2219.39,0.00028997,7]
[328202917,1717056645944,-500.0,0.00028997,7]
[328202920,1717056645953,-500.0,0.00028997,7]
[328202923,1717056645962,-500.0,0.00028997,7]
[328202925,1717056645971,-500.0,0.00028997,7]
[328202928,1717056645981,-500.0,0.00028997,7]
[328202931,1717056645990,-500.0,0.00028997,7]
[328202933,1717056645999,-500.0,0.00028997,7]
[328202934,1717056646008,-500.0,0.00028997,7]
[328202936,1717056646017,-500.0,0.00028997,7]
[328202938,1717056646028,-664.66,0.00028997,7]
[328202941,1717056646037,-518.12,0.00028997,7]
[328202944,1717056646049,-500.0,0.00028997,7]
[328202947,1717056646058,-500.0,0.00028997,7]
[328202950,1717056646067,-527.97699263,0.00028997,7]
[328202953,1717056646077,-500.0,0.00028997,7]
[328202957,1717056646087,-865.5,0.00028997,7]
[328202961,1717056646097,-552.36496864,0.00028997,7]
[328202962,1717056646107,-2613.58,0.00028997,7]
[328202965,1717056646116,-500.0,0.00028997,7]
[328202968,1717056646125,-500.0,0.00028997,2]
[328202971,1717056646134,-546.71679252,0.00028997,7]
[328202974,1717056646144,-500.0,0.00028997,7]
[328202977,1717056646153,-1844.99,0.00028997,7]
[328202979,1717056646163,-500.0,0.00028997,7]
[328202981,1717056646172,-500.0,0.00028997,7]
[328202983,1717056646182,-500.0,0.00028997,7]
[328202985,1717056646191,-500.0,0.00028997,7]
[328202987,1717056646202,-500.0,0.00028997,7]
[328202989,1717056646212,-500.0,0.00028997,7]
[328202991,1717056646223,-833.7,0.00028997,7]
[328202993,1717056646232,-500.0,0.00028997,7]
[328202995,1717056646242,-500.0,0.00028997,7]
[328202997,1717056646252,-500.0,0.00028997,7]
[328202999,1717056646262,-500.0,0.00028997,7]
[328203000,1717056646271,-500.0,0.00028997,7]
[328203002,1717056646280,-500.0,0.00028997,7]
[328203004,1717056646290,-500.0,0.00028997,7]
[328203006,1717056646302,-516.23327805,0.00028997,7]
[328203008,1717056646311,-500.0,0.00028997,7]
[328203010,1717056646320,-1384.47,0.00028997,7]
[328203012,1717056646330,-550.37807288,0.00028997,7]
[328203014,1717056646339,-2013.98,0.00028997,7]
[328203016,1717056646349,-624.91,0.00028997,7]
[328203018,1717056646361,-155.28587693,0.00028998,2]
[328203020,1717056646370,-153344.02740635,0.00028998,2]
[328203023,1717056646385,-272.12555121,0.00028998,2]
[328203029,1717056646408,-262.04857057,0.00028998,2]
[328203032,1717056646419,-7452.48,0.00028998,2]
[328203034,1717056646441,-1597.7821369,0.00028998,2]
[328203035,1717056646453,-510.72358628,0.00028998,2]
[328203036,1717056646465,-94142.22186257,0.00028998,2]
[328203037,1717056646474,-1330.71149535,0.00029,2]
[328203038,1717056646484,-500.0,0.0002927,7]
[328203039,1717056646494,-500.0,0.0002927,7]
[328203040,1717056646503,-500.0,0.0002927,7]
[328203041,1717056646513,-500.0,0.0002927,7]
[328203042,1717056646522,-500.0,0.0002927,7]
[328203043,1717056646533,-500.0,0.0002927,7]
[328203044,1717056646542,-500.0,0.0002927,7]
[328203045,1717056646554,-1897.63,0.0002927,7]
[328203046,1717056646562,-500.0,0.0002927,7]
[328203047,1717056646571,-500.0,0.0002927,7]
[328203048,1717056646580,-686.59,0.0002927,7]
[328203049,1717056646588,-568.49,0.0002927,7]
[328203050,1717056646597,-500.0,0.0002927,7]
[328203051,1717056646606,-506.36,0.0002927,7]
[328203052,1717056646617,-848.46,0.0002927,7]
[328203053,1717056646626,-500.0,0.0002927,7]
[328203054,1717056646635,-501.65,0.0002927,7]
[328203055,1717056646644,-500.0,0.0002927,7]
[328203056,1717056646653,-500.0,0.0002927,7]
[328203057,1717056646662,-500.0,0.0002927,7]
[328203058,1717056646671,-500.0,0.0002927,7]
[328203059,1717056646680,-500.0,0.0002927,7]
[328203060,1717056646690,-500.0,0.0002927,7]
[328203061,1717056646699,-544.96,0.0002927,7]
[328203062,1717056646709,-1254.64,0.0002927,7]
[328203063,1717056646718,-500.0,0.0002927,7]
[328203064,1717056646727,-696.45,0.0002927,7]
[328203065,1717056646736,-500.0,0.0002927,7]
[328203066,1717056646746,-576.46687424,0.0002927,2]
[328203067,1717056646755,-500.0,0.0002927,7]
[328203068,1717056646764,-500.0,0.0002927,7]
[328203069,1717056646773,-500.0,0.0002927,7]
[328203070,1717056646783,-500.0,0.0002927,7]
[328203071,1717056646792,-500.0,0.0002927,7]
[328203072,1717056646804,-500.0,0.0002927,7]
[328203073,1717056646813,-500.0,0.0002927,7]
[328203074,1717056646822,-1022.9,0.0002927,7]
[328203075,1717056646832,-4090.6,0.0002927,7]
[328203076,1717056646842,-500.0,0.0002927,2]
[328203077,1717056646852,-361.67196375,0.0002927,2]
[328203078,1717056646862,-500.0,0.0002927,7]
[328203079,1717056646872,-1221.29,0.0002927,7]
[328203080,1717056646881,-949.8,0.0002927,7]
[328203081,1717056646890,-743.33587614,0.00029271,11]
[328203082,1717056646899,-588.2364289,0.00029271,7]
[328203083,1717056646910,-541.4505199,0.00029271,7]
[328203084,1717056646919,-500.0,0.00029271,7]
[328203085,1717056646929,-563.71877724,0.00029271,7]
[328203086,1717056646938,-500.0,0.00029271,7]
[328203087,1717056646948,-500.0,0.00029271,7]
[328203088,1717056646957,-500.0,0.00029271,7]
[328203089,1717056646967,-285.02852925,0.00029271,7]
[328203090,1717056646976,-500.0,0.00029271,7]
[328203091,1717056646985,-500.0,0.00029271,7]
[328203092,1717056646994,-500.0,0.00029271,7]
[328203093,1717056647003,-500.0,0.00029271,7]
[328203094,1717056647012,-500.0,0.00029271,7]
[328203095,1717056647022,-500.0,0.00029271,7]
[328203096,1717056647032,-500.0,0.00029271,7]
[328203097,1717056647041,-500.0,0.00029271,7]
[328203098,1717056647052,-515.87690261,0.00029271,7]
[328203099,1717056647062,-627.23454568,0.00029271,7]
[328203100,1717056647071,-529.77217668,0.00029271,7]
[328203101,1717056647080,-500.0,0.00029271,7]
[328203102,1717056647089,-536.98517138,0.00029271,7]
[328203103,1717056647098,-500.0,0.00029271,7]
[328203104,1717056647108,-542.16908329,0.00029271,7]
[328203105,1717056647117,-500.0,0.00029271,7]
[328203106,1717056647127,-500.0,0.00029271,7]
[328203107,1717056647137,-583.24375022,0.00029271,7]
[328203108,1717056647146,-1388.89,0.00029271,7]
[328203109,1717056647155,-604.01719525,0.00029271,7]
[328203110,1717056647164,-500.0,0.00029271,7]
[328203111,1717056647174,-500.0,0.00029271,7]
[328203112,1717056647183,-500.0,0.00029271,7]
[328203113,1717056647193,-500.0,0.00029271,7]
[328203114,1717056647203,-500.0,0.00029271,7]
[328203115,1717056647214,-1174.73,0.00029271,7]
[328203116,1717056647223,-788.6,0.00029271,7]
[328203117,1717056647233,-556.52090276,0.00029271,7]
[328203118,1717056647242,-500.0,0.00029271,7]
[328203119,1717056647253,-500.0,0.00029271,7]
[328203120,1717056647262,-523.8033649,0.00029271,7]
[328203121,1717056647272,-544.92465991,0.00029271,7]
[328203122,1717056647281,-500.0,0.00029271,2]
[328203123,1717056647290,-500.0,0.00029271,7]
[328203124,1717056647300,-20000.0,0.00029271,2]
[328203125,1717056647310,-530.27269286,0.00029271,7]
[328203126,1717056647319,-1073.05,0.00029271,7]
[328203127,1717056647329,-500.0,0.00029271,7]
[328203128,1717056647338,-500.0,0.00029271,7]
[328203129,1717056647352,-500.0,0.00029271,7]
[328203130,1717056647362,-500.0,0.00029271,7]
[328203131,1717056647372,-500.0,0.00029271,2]
[328203132,1717056647381,-807.73,0.00029271,7]
[328203133,1717056647390,-1734.2,0.00029271,7]
[328203134,1717056647402,-500.0,0.00029271,7]
[328203135,1717056647411,-500.0,0.00029271,2]
[328203136,1717056647421,-500.0,0.00029271,7]
[328203137,1717056647430,-500.0,0.00029271,2]
[328203138,1717056647440,-1260.95,0.00029271,7]
[328203139,1717056647449,-159.20666148,0.00029271,7]
[328203140,1717056647460,-500.0,0.00029271,7]
[328203141,1717056647470,-500.0,0.00029271,7]
[328203142,1717056647479,-1380.33,0.00029271,7]
[328203143,1717056647489,-500.0,0.00029271,7]
[328203144,1717056647499,-641.04,0.00029271,7]
[328203145,1717056647508,-460.47059421,0.00029271,7]
[328203146,1717056647517,-500.0,0.00029271,7]
[328203147,1717056647526,-500.0,0.00029271,2]
[328203148,1717056647535,-648.25065345,0.00029271,7]
[328203149,1717056647544,-523.87854074,0.00029271,7]
[328203150,1717056647556,-500.0,0.00029271,2]
[328203151,1717056647566,-500.0,0.00029271,7]
[328203152,1717056647579,-540.09285425,0.00029271,7]
[328203153,1717056647589,-837.56,0.00029271,7]
[328203154,1717056647598,-500.0,0.00029271,7]
[328203155,1717056647608,-500.0,0.00029271,7]
[328203156,1717056647618,-500.0,0.00029271,7]
[328203157,1717056647627,-500.0,0.00029271,7]
[328203158,1717056647636,-544.32127017,0.00029271,7]
[328203159,1717056647646,-500.0,0.00029271,7]
[328203160,1717056647655,-500.0,0.00029271,7]
[328203161,1717056647666,-500.0,0.00029271,7]
[328203162,1717056647675,-521.37,0.00029271,7]
[328203163,1717056647685,-500.0,0.00029271,7]
[328203164,1717056647695,-500.0,0.00029271,7]
[328203165,1717056647705,-829.27,0.00029271,7]
[328203166,1717056647714,-829.7,0.00029271,7]
[328203167,1717056647724,-547.05857327,0.00029271,7]
[328203168,1717056647734,-500.0,0.00029271,7]
[328203169,1717056647743,-994.67,0.00029271,7]
[328203170,1717056647753,-500.0,0.00029271,7]
[328203171,1717056647763,-500.0,0.00029271,7]
[328203172,1717056647772,-465.82275036,0.00029271,7]
[328203173,1717056647783,-500.0,0.00029271,7]
[328203174,1717056647792,-500.0,0.00029271,7]
[328203175,1717056647803,-500.0,0.00029271,7]
[328203176,1717056647812,-500.0,0.00029271,7]
[328203177,1717056647822,-500.0,0.00029271,7]
[328203178,1717056647831,-500.0,0.00029271,7]
[328203179,1717056647840,-500.0,0.00029271,7]
[328203180,1717056647850,-500.0,0.00029271,7]
[328203181,1717056647859,-530.47601288,0.00029271,7]
[328203182,1717056647869,-500.0,0.00029271,7]
[328203183,1717056647879,-647.01,0.00029271,7]
[328203184,1717056647888,-500.0,0.00029271,7]
[328203185,1717056647898,-500.0,0.00029271,7]
[328203186,1717056647908,-500.0,0.00029271,7]
[328203187,1717056647918,-710.35,0.00029271,7]
[328203188,1717056647927,-500.0,0.00029271,7]
[328203189,1717056647937,-508.02806082,0.00029271,7]
[328203190,1717056647947,-500.0,0.00029271,7]
[328203191,1717056647957,-576.92644213,0.00029271,7]
[328203192,1717056647967,-518.75,0.00029271,7]
[328203193,1717056647977,-312.69371545,0.00029271,7]
[328203194,1717056647986,-1829.43,0.00029271,7]
[328203195,1717056647996,-500.0,0.00029271,7]
[328203196,1717056648006,-500.0,0.00029271,7]
[328203197,1717056648154,-500.0,0.00029271,7]
[328203198,1717056648164,-500.0,0.00029271,7]
[328203199,1717056648173,-500.0,0.00029271,7]
[328203200,1717056648183,-500.0,0.00029271,7]
[328203201,1717056648192,-520.06591919,0.00029271,7]
[328203202,1717056648203,-500.0,0.00029271,7]
[328203203,1717056648212,-500.04,0.00029271,7]
[328203204,1717056648222,-527.15136157,0.00029271,7]
[328203205,1717056648231,-500.0,0.00029271,7]
[328203206,1717056648241,-500.0,0.00029271,7]
[328203207,1717056648250,-500.0,0.00029271,7]
[328203208,1717056648260,-500.0,0.00029271,7]
[328203209,1717056648269,-500.0,0.00029271,7]
[328203210,1717056648278,-500.0,0.00029271,7]
[328203211,1717056648288,-532.19,0.00029271,7]
[328203212,1717056648297,-500.0,0.00029271,7]
[328203213,1717056648308,-500.0,0.00029271,7]
[328203214,1717056648317,-500.0,0.00029271,7]
[328203215,1717056648327,-500.0,0.00029271,7]
[328203216,1717056648337,-500.0,0.00029271,7]
[328203217,1717056648347,-699.93,0.00029271,7]
[328203218,1717056648359,-544.3251234,0.00029271,7]
[328203219,1717056648368,-500.0,0.00029271,7]
[328203220,1717056648378,-500.0,0.00029271,7]
[328203221,1717056648388,-500.0,0.00029271,7]
[328203222,1717056648397,-500.0,0.00029271,7]
[328203223,1717056648406,-500.0,0.00029271,7]
[328203224,1717056648415,-684.73,0.00029271,7]
[328203225,1717056648424,-500.0,0.00029271,7]
[328203226,1717056648435,-500.0,0.00029271,7]
[328203227,1717056648444,-676.36,0.00029271,7]
[328203228,1717056648453,-500.0,0.00029271,7]
[328203229,1717056648463,-536.366878,0.00029271,7]
[328203230,1717056648472,-500.0,0.00029271,7]
[328203231,1717056648481,-825.66,0.00029271,7]
[328203232,1717056648490,-500.0,0.00029271,7]
[328203233,1717056648499,-500.0,0.00029271,7]
[328203234,1717056648508,-500.0,0.00029271,7]
[328203235,1717056648518,-536.742844,0.00029271,7]
[328203236,1717056648527,-743.3,0.00029271,7]
[328203237,1717056648536,-531.116838,0.00029271,7]
[328203238,1717056648545,-500.0,0.00029271,7]
[328203239,1717056648558,-805.62,0.00029271,7]
[328203240,1717056648567,-500.0,0.00029271,7]
[328203241,1717056648579,-536.42454949,0.00029271,7]
[328203242,1717056648588,-500.0,0.00029271,7]
[328203243,1717056648597,-500.0,0.00029271,7]
[328203244,1717056648606,-271.19582837,0.00029271,7]
[328203245,1717056648616,-500.0,0.00029271,7]
[328203246,1717056648625,-500.0,0.00029271,7]
[328203247,1717056648634,-500.0,0.00029271,7]
[328203248,1717056648644,-500.0,0.00029271,7]
[328203249,1717056648653,-500.0,0.00029271,7]
[328203250,1717056648662,-268.19,0.00029271,7]
[328203251,1717056648671,-500.0,0.00029271,7]
[328203252,1717056648680,-500.0,0.00029271,7]
[328203253,1717056648690,-500.0,0.00029271,7]
[328203254,1717056648699,-500.0,0.00029271,7]
[328203255,1717056648709,-500.0,0.00029271,7]
[328203256,1717056648718,-500.0,0.00029271,7]
[328203257,1717056648727,-500.0,0.00029271,7]
[328203258,1717056648737,-500.0,0.00029271,7]
[328203259,1717056648747,-500.0,0.00029271,7]
[328203260,1717056648757,-500.0,0.00029271,7]
[328203261,1717056648766,-500.0,0.00029271,7]
[328203262,1717056648776,-709.47,0.00029271,7]
[328203263,1717056648785,-500.0,0.00029271,7]
[328203264,1717056648795,-500.0,0.00029271,7]
[328203265,1717056648809,-500.0,0.00029271,7]
[328203266,1717056648818,-500.0,0.00029271,7]
[328203267,1717056648827,-690.45,0.00029271,7]
[328203268,1717056648836,-500.0,0.00029271,7]
[328203269,1717056648845,-532.08815949,0.00029271,7]
[328203270,1717056648854,-500.0,0.00029271,7]
[328203271,1717056648864,-500.0,0.00029271,7]
[328203272,1717056648873,-500.0,0.00029271,7]
[328203273,1717056648881,-500.0,0.00029271,7]
[328203274,1717056648890,-500.0,0.00029271,7]
[328203275,1717056648899,-500.0,0.00029271,7]
[328203276,1717056648909,-500.0,0.00029271,7]
[328203277,1717056648918,-542.32974555,0.00029271,7]
[328203278,1717056648927,-500.0,0.00029271,7]
[328203279,1717056648937,-500.0,0.00029271,7]
[328203280,1717056648947,-500.0,0.00029271,7]
[328203281,1717056648957,-500.0,0.00029271,7]
[328203282,1717056648966,-528.41723625,0.00029271,7]
[328203283,1717056648975,-500.0,0.00029271,7]
[328203284,1717056648984,-500.0,0.00029271,7]
[328203285,1717056648994,-1318.36,0.00029271,7]
[328203286,1717056649003,-531.09807981,0.00029271,7]
[328203287,1717056649012,-500.0,0.00029271,7]
[328203288,1717056649022,-500.0,0.00029271,7]
[328203289,1717056649032,-517.54,0.00029271,7]
[328203290,1717056649041,-500.0,0.00029271,7]
[328203291,1717056649056,-500.0,0.00029271,7]
[328203292,1717056649066,-500.0,0.00029271,7]
[328203293,1717056649075,-500.0,0.00029271,7]
[328203294,1717056649084,-530.95869177,0.00029271,7]
[328203295,1717056649093,-500.0,0.00029271,7]
[328203296,1717056649102,-500.0,0.00029271,7]
[328203297,1717056649111,-500.0,0.00029271,7]
[328203298,1717056649120,-500.0,0.00029271,7]
[328203299,1717056649129,-500.0,0.00029271,7]
[328203300,1717056649139,-500.0,0.00029271,7]
[328203301,1717056649149,-500.0,0.00029271,7]
[328203302,1717056649159,-500.0,0.00029271,7]
[328203303,1717056649169,-500.0,0.00029271,7]
[328203304,1717056649178,-500.0,0.00029271,7]
[328203305,1717056649187,-500.0,0.00029271,7]
[328203306,1717056649198,-500.0,0.00029271,7]
[328203307,1717056649209,-500.0,0.00029271,7]
[328203308,1717056649219,-500.0,0.00029271,7]
[328203309,1717056649229,-1317.1,0.00029271,7]
[328203310,1717056649238,-561.46,0.00029271,7]
[328203311,1717056649247,-500.0,0.00029271,7]
[328203312,1717056649257,-500.0,0.00029271,7]
[328203313,1717056649265,-500.0,0.00029271,7]
[328203314,1717056649274,-500.0,0.00029271,7]
[328203315,1717056649284,-500.0,0.00029271,7]
[328203316,1717056649293,-500.0,0.00029271,7]
[328203317,1717056649308,-500.0,0.00029271,7]
[328203318,1717056649317,-500.0,0.00029271,7]
[328203319,1717056649326,-500.0,0.00029271,7]
[328203320,1717056649335,-672.23,0.00029271,7]
[328203321,1717056649345,-500.0,0.00029271,7]
[328203322,1717056649360,-500.0,0.00029271,7]
[328203323,1717056649369,-500.0,0.00029271,7]